[Event "8th Svetozar Gligoric Cup 2022"]
[Site "Paracin"]
[Date "2022.06.03"]
[Round "5.7"]
[White "Popovic, Milan S"]
[Black "Ciric, Pavle"]
[Result "1-0"]
[ECO "C11"]
[WhiteElo "2383"]
[BlackElo "2177"]
[Annotator "TA"]
[PlyCount "61"]
[EventDate "2022.05.31"]
[EventType "team-tourn"]
[EventCountry "SRB"]
[SourceTitle "playchess.com"]
[Source "ChessBase"]
[SourceQuality "1"]
[TimeControl "40/5400+30:900+30"]

{[%evp 24,61,72,48,122,118,125,108,104,101,122,122,108,104,104,-150,110,135,155,130,174,159,295,298,920,893,853,833,1307,1307,1280,1271,12839,12839,12840,12838,12837,12836,29991,29992]} 1. e4 {[%emt 0:00:01][%cal Be2e4,Be4e5][%mdl 32]} e6 {[%emt 0:00:05]} 2. d4 {[%emt 0:00:17]} d5 {[%emt 0:00:04]} 3. Nc3 {[%emt 0:00:04]} Nf6 {[%emt 0:00:03]} 4. e5 {[%emt 0:00:03]} Nfd7 {[%emt 0:00:04]} 5. f4 {[%emt 0:00:04]} c5 {[%emt 0:00:03]} 6. Nf3 {[%emt 0:00:04]} Nc6 {[%emt 1:33:11]} 7. Be3 {[%emt 1:33:27]} Qb6 {[%emt 0:00:30]} 8. Na4 {[%emt 0:00:30]} Qa5+ {[%emt 0:00:30]} 9. c3 {[%emt 0:00:30]} cxd4 {[%emt 0:00:30]} 10. b4 {[%emt 0:00:30]} Nxb4 {[%emt 0:00:30]} 11. cxb4 {[%emt 0:00:00]} Bxb4+ {[%emt 0:00:30]} 12. Bd2 {[%emt 0:00:00]} Bxd2+ {[%emt 0:00:00]} 13. Nxd2 {[%emt 0:00:00]} O-O {[%emt 0:01:00] C11: French: Classical System: 4 e5 and 4 Bg5 dxe4.} (13... b6 $14) 14. Bd3 $1 $16 {[%emt 0:00:00]} b5 {[%emt 0:00:00]} 15. Nb2 {[%emt 0:00:00]} ({But not} 15. Qh5 $2 g6 16. Qe2 bxa4 $19) 15... Nb6 {[%emt 0:00:00] White is better.} 16. O-O {[%emt 0:00:00][%cal Od3h7] Threatens to win with Bxh7+!} Nc4 {[%emt 0:01:30]} 17. Nbxc4 {[%emt 0:00:00]} ({Weaker is} 17. Qh5 g6 18. Ndxc4 bxc4 $17) 17... bxc4 {[%emt 0:00:00] [#]} 18. Bxh7+ {[%emt 0:00:00][%mdl 512]} Kxh7 {[%emt 0:00:00]} 19. Qh5+ {[%emt 0:04:30]} Kg8 {[%emt 0:00:00]} 20. Nf3 {[%emt 0:00:00][%cal Bd2f3,Bf3g5,Bg5e6][%mdl 32] White is more active.} g6 {[%emt 0:02:00]} 21. Qh6 {[%emt 0:00:00] Threatening mate with Ng5.} Qc7 {[%emt 0:00:30] [#] White must now prevent ...d3.} 22. f5 $1 $40 {[%emt 0:01:30][%mdl 128] White threatens f6 and mate. Black is in trouble.} (22. Ng5 $2 f6 23. Qxg6+ Qg7 24. Qxg7+ Kxg7 25. exf6+ Rxf6 $19) 22... exf5 {[%emt 0:00:00] [#]} (22... f6 $16 {was called for.}) 23. Rae1 $1 $18 {[%emt 0:00:00] [#]} Qd7 $146 {[%emt 0:00:00]} (23... f6) ({Predecessor:} 23... f6 24. exf6 Qh7 25. Qf4 Qf7 26. Re7 Qxf6 27. Rfe1 Bd7 28. Rxd7 Rae8 29. Ne5 d3 30. Rxd5 Qb6+ 31. Kh1 Rf7 32. Qxc4 d2 33. Rf1 Qc7 34. Qd4 Qc1 35. Kg1 {1-0 (35) Tauscher,K (2492)-Faber,H (2464) Remote email 2012}) 24. Ng5 {[%emt 0:00:00][%csl Gg5][%cal Rh6h7]} f6 {[%emt 0:00:00] [#]} 25. Ne6 $1 {[%emt 0:00:00][%mdl 512]} Qf7 {[%emt 0:00:00]} (25... Rf7 26. Qxg6+) 26. Nxf8 {[%emt 0:00:00][%cal Oe5f6] White wants to mate with exf6!} Qg7 {[%emt 0:00:00] [#]} 27. Qh4 $1 {[%emt 0:00:00][%cal Oe5f6]} fxe5 {[%emt 0:00:00] [#]} (27... Qxf8 28. exf6) 28. Nxg6 $1 {[%emt 0:00:00][%mdl 512]} Qxg6 {[%emt 0:00:00]} 29. Qd8+ {[%emt 0:00:00]} Kh7 {[%emt 0:01:43]} 30. Rxe5 {[%emt 0:00:00]} Bb7 {[%emt 0:00:42]} 31. Qc7+ {[%emt 0:04:30] Weighted Error Value: White=0.00 (flawless) /Black=0.65} 1-0

[Event "8th Svetozar Gligoric Cup 2022"]
[Site "Paracin"]
[Date "2022.06.03"]
[Round "5.8"]
[White "Maksimovic, Boban"]
[Black "Omorjan, Dejan"]
[Result "0-1"]
[ECO "A48"]
[WhiteElo "2221"]
[BlackElo "2339"]
[Annotator "TA"]
[PlyCount "60"]
[EventDate "2022.05.31"]
[EventType "team-tourn"]
[EventCountry "SRB"]
[SourceTitle "playchess.com"]
[Source "ChessBase"]
[SourceQuality "1"]
[TimeControl "40/5400+30:900+30"]

{[%evp 12,60,0,4,0,7,5,5,0,1,24,19,36,-60,-53,-70,-67,-64,-62,-75,-66,-78,-78,-88,-70,-127,-137,-272,-182,-182,-216,-210,-200,-166,-140,-126,-136,-322,-260,-269,-268,-443,-408,-507,-508,-495,-510,-708,-701,-1133,-1087]} 1. d4 {[%emt 0:00:06]} Nf6 {[%emt 0:00:10]} 2. Nf3 {[%emt 0:00:07]} g6 {[%emt 0:00:09]} 3. Bg5 {[%emt 0:02:16]} Bg7 {[%emt 0:00:09]} 4. Nbd2 {[%emt 0:00:09]} c5 {[%emt 0:01:42]} 5. e3 {[%emt 0:00:55]} cxd4 {[%emt 0:01:10]} 6. exd4 {[%emt 0:01:01]} O-O {[%emt 0:02:01]} 7. Bd3 {[%emt 0:10:31]} Nc6 {[%emt 0:00:49] A48: 1 d4 Nf6 2 Nf3 g6: Torre, London and Colle Systems.} 8. O-O {[%emt 0:00:32]} h6 {[%emt 0:04:05]} 9. Bh4 {[%emt 0:00:58]} d6 {[%emt 0:03:29][%cal Bd7d6,Bd6e5,Be5e4][%mdl 32] The position is equal.} 10. c3 {[%emt 0:05:34]} Nh5 {[%emt 0:07:47] has lost popularity (10...e5).} 11. Re1 {[%emt 0:01:52]} f5 {[%emt 0:06:26] [#]} 12. Bg3 $146 {[%emt 0:26:08]} ({Better is} 12. Bc2 $14) ({Predecessor:} 12. Bb5 Nf6 13. d5 Ne5 14. Bxf6 Bxf6 15. Nd4 a6 16. Bf1 Qb6 17. N2b3 Bd7 18. Qd2 {0-1 (96) Kiik,K (2402)-Karttunen,M (2464) Finland 2017}) 12... Nxg3 {[%emt 0:05:41]} 13. hxg3 {[%emt 0:00:19]} e5 $1 {[%emt 0:00:45]} 14. dxe5 {[%emt 0:06:36]} dxe5 {[%emt 0:02:38]} 15. Bc4+ {[%emt 0:02:13]} Kh7 {[%emt 0:01:14]} 16. Nb3 {[%emt 0:00:23]} Qc7 {[%emt 0:11:33]} 17. Qd5 {[%emt 0:13:22]} e4 {[%emt 0:08:56]} 18. Nfd2 {[%emt 0:07:41]} ({White should play} 18. Nfd4 $15) 18... Rd8 $17 {[%emt 0:06:05]} 19. Qf7 {[%emt 0:02:06]} (19. Qc5 $17) 19... Qxf7 {[%emt 0:03:43]} 20. Bxf7 {[%emt 0:00:11] [#]} b5 {[%emt 0:00:46] Prevents Nc4. aiming for ...Ne5.} 21. f4 {[%emt 0:00:36] Against Ne5} Rb8 {[%emt 0:10:34] White must now prevent ...Rb7.} 22. a4 {[%emt 0:08:09]} a6 {[%emt 0:00:44][%cal Ba7a6,Ba6b5,Bb5b4][%mdl 32]} 23. axb5 {[%emt 0:01:16]} axb5 {[%emt 0:00:40]} ({Don't play} 23... Rxb5 $6 24. Bc4 $11) 24. c4 $2 {[%emt 0:00:57] [#] White does not recover from this.} (24. Nf1 $17 {was worth a try.}) 24... Bxb2 {[%emt 0:03:57]} 25. Ra2 {[%emt 0:00:41]} Bc3 {[%emt 0:01:54]} 26. Rc2 $2 {[%emt 0:05:34]} (26. cxb5 {might work better.} Nb4 27. Ra4) 26... b4 {[%emt 0:01:51]} 27. Rb1 {[%emt 0:01:18]} Kg7 {[%emt 0:01:54] Black is clearly winning.} 28. Bd5 {[%emt 0:00:06]} Ne7 {[%emt 0:00:38][%cal Bc6e7,Be7d5,Bd5e3][%mdl 32]} 29. Na5 {[%emt 0:03:23]} Nxd5 {[%emt 0:13:30]} 30. Nc6 {[%emt 0:00:30]} Ne3 {[%csl LRc2,LRd2] Weighted Error Value: White=0.70/Black=0.13 (very precise)} 0-1

[Event "8th Svetozar Gligoric Cup 2022"]
[Site "Paracin"]
[Date "2022.06.03"]
[Round "5.9"]
[White "Savicevic, Vlatko"]
[Black "Maksimovic, Bojan"]
[Result "0-1"]
[ECO "B40"]
[WhiteElo "2284"]
[BlackElo "2445"]
[Annotator "TA"]
[PlyCount "76"]
[EventDate "2022.05.31"]
[EventType "team-tourn"]
[EventCountry "SRB"]
[SourceTitle "playchess.com"]
[Source "ChessBase"]
[SourceQuality "1"]
[TimeControl "40/5400+30:900+30"]

{[%evp 14,76,13,-23,-1,-31,-14,-8,-14,-11,0,0,39,-43,-25,-61,-41,-68,-62,-108,-99,-113,-116,-117,-94,-112,-78,-59,-66,-93,-77,-197,-203,-191,-206,-218,-213,-194,-216,-224,-216,-218,-197,-178,-95,-103,-106,-106,-101,-131,-106,-162,-83,-150,-95,-95,-95,-95,-95,-106,-91,-153,-106,-106,-84]} 1. e4 {[%emt 0:01:32]} c5 {[%emt 0:00:05]} 2. Nf3 {[%emt 0:01:58]} e6 {[%emt 0:00:28]} 3. Nc3 {[%emt 0:01:38]} a6 {[%emt 0:00:22]} 4. g3 {[%emt 0:02:36]} b5 {[%emt 0:00:33]} 5. Bg2 {[%emt 0:00:26]} Bb7 {[%emt 0:00:11]} 6. d3 {[%emt 0:00:12]} d6 {[%emt 0:02:04]} 7. O-O {[%emt 0:01:09]} Nf6 {[%emt 0:01:25]} 8. Ng5 {[%emt 0:01:10]} h6 {[%emt 0:06:25] B40: Sicilian: 2...e6, Unusual lines.} 9. Nh3 {[%emt 0:00:15]} Nc6 {[%emt 0:00:18]} 10. f4 {[%emt 0:01:51][%cal Bf2f4,Bf4f5][%mdl 32]} Be7 {[%emt 0:00:48] The position is equal.} 11. a3 {[%emt 0:19:17]} Qc7 {[%emt 0:07:14]} 12. f5 {[%emt 0:04:34]} e5 {[%emt 0:09:12] [#]} 13. g4 $146 {[%emt 0:13:27]} (13. Nd5 $14 Nxd5 14. exd5) ({Predecessor:} 13. Nd5 Nxd5 14. exd5 Nb8 15. Qg4 Bf6 16. Nf2 Nd7 17. c4 bxc4 18. dxc4 a5 19. a4 {1-0 (29) Hansen,E (2527)-Santiago,Y (2364) Mar del Plata 2012}) 13... Nd4 $15 {[%emt 0:06:14]} 14. Nd5 {[%emt 0:06:51]} Bxd5 {[%emt 0:01:54]} 15. exd5 {[%emt 0:00:11]} c4 $1 {[%emt 0:00:32]} 16. dxc4 {[%emt 0:18:35]} (16. Be3 $15 {feels stronger.}) 16... Qxc4 $17 {[%emt 0:00:48]} 17. Rf2 {[%emt 0:03:49]} Rc8 {[%emt 0:06:42][%cal Rd4c2]} ({Resist} 17... Nxd5 18. c3 $18) 18. b3 {[%emt 0:04:59]} Qc3 {[%emt 0:00:31]} 19. Ra2 {[%emt 0:00:34] [#]} Nxd5 $1 {[%emt 0:05:29][%mdl 512] 0x0.001e35e259a1dp-1022s more active pieces.} 20. Bxd5 {[%emt 0:03:49][%cal Oh3f4] Nf4! is the strong threat.} Qxh3 {[%emt 0:00:17]} 21. Bg2 {[%emt 0:01:52]} Qh4 {[%emt 0:02:27]} 22. c3 {[%emt 0:05:30]} (22. Bd2 $17 {might work better.}) 22... Rxc3 $19 {[%emt 0:01:08] aiming for ...Rc7.} 23. Bb2 {[%emt 0:00:06]} Rc7 {[%emt 0:02:53]} 24. Bxd4 {[%emt 0:00:06]} exd4 {[%emt 0:00:03]} 25. Rac2 {[%emt 0:01:21]} Rxc2 {[%emt 0:00:27]} 26. Rxc2 {[%emt 0:00:16]} O-O {[%emt 0:00:07]} 27. Qxd4 {[%emt 0:00:45]} h5 {[%emt 0:02:07]} 28. Bf3 {[%emt 0:00:59]} hxg4 {[%emt 0:02:35]} (28... d5 $19 29. a4 bxa4 30. bxa4 Rb8 31. Bxd5 hxg4) 29. Qxg4 $17 {[%emt 0:01:51]} Qe1+ {[%emt 0:00:28]} 30. Kg2 {[%emt 0:00:05]} Bf6 {[%emt 0:00:13]} 31. Qe4 {[%emt 0:00:25]} Qa1 {[%emt 0:03:36]} 32. a4 {[%emt 0:00:52]} (32. Bh5 $17) 32... bxa4 {[%emt 0:00:07]} (32... Bd4 $19 33. axb5 axb5) 33. bxa4 {[%emt 0:00:07]} ({Better is} 33. Qxa4 Qe5 34. Qe4) 33... a5 {[%emt 0:02:39]} (33... Bd4 $142 {White must now prevent ...Rb8.} 34. Be2 Qg1+ 35. Kh3 a5) 34. Be2 {[%emt 0:00:59]} Qe1 {[%emt 0:09:44]} 35. Bd3 {[%emt 0:03:01]} Qd1 {[%emt 0:01:16][%cal Od6d5]} 36. Bc4 {[%emt 0:00:41]} Be5 {[%emt 0:01:24]} 37. Bd5 {[%emt 0:00:14]} (37. Be2 $142 Qb1 38. Bc4) 37... Qh5 {[%emt 0:00:12]} ({Black should play} 37... Rb8 38. f6 Qh5) 38. h3 {[%emt 0:00:43]} Kh7 {[%emt 0:03:14] Weighted Error Value: White=0.26 (precise) /Black=0.17 (very precise)} 0-1

[Event "8th Svetozar Gligoric Cup 2022"]
[Site "Paracin"]
[Date "2022.06.03"]
[Round "5.10"]
[White "Tadic, Stefan"]
[Black "Simic, Dragisa"]
[Result "1/2-1/2"]
[ECO "C00"]
[WhiteElo "2358"]
[BlackElo "2290"]
[Annotator "TA"]
[PlyCount "84"]
[EventDate "2022.05.31"]
[EventType "team-tourn"]
[EventCountry "SRB"]
[SourceTitle "playchess.com"]
[Source "ChessBase"]
[SourceQuality "1"]
[TimeControl "40/5400+30:900+30"]

{[%evp 15,84,-6,0,-8,10,10,23,6,0,0,-6,0,0,-48,-6,0,0,-10,23,0,59,46,72,65,63,38,65,0,79,0,0,-22,-8,-57,-57,-67,0,0,0,0,0,-180,-178,-308,-252,-214,-194,-264,-238,-252,-254,-300,-279,-308,-297,-273,-222,-216,-166,-175,-8,-24,-19,-15,-21,-40,-6,-21,-15,-25,0]} 1. e4 {[%emt 0:00:02]} e6 {[%emt 0:01:30]} 2. Qe2 {[%emt 0:00:26]} c5 {[%emt 0:02:12]} 3. g3 {[%emt 0:00:06]} Nc6 {[%emt 0:00:15]} 4. Nf3 {[%emt 0:00:07]} Nf6 {[%emt 0:01:51]} 5. Bg2 {[%emt 0:00:15]} d5 {[%emt 0:00:29]} 6. d3 {[%emt 0:00:59]} Be7 {[%emt 0:00:36]} 7. O-O {[%emt 0:00:08]} O-O {[%emt 0:02:24]} 8. e5 {[%emt 0:00:08]} Ne8 {[%emt 0:01:14]} 9. Bf4 {[%emt 0:07:20] C00: French: Unusual White 2nd moves.} b5 {[%emt 0:01:15]} 10. c3 {[%emt 0:05:45]} b4 {[%emt 0:05:22]} 11. h4 {[%emt 0:07:41] White has an edge.} a5 {[%emt 0:03:27] [#]} 12. Nbd2 $146 {[%emt 0:03:09][%cal Bb1d2,Bd2f1,Bf1h2,Bh2g4][%mdl 32]} ({Predecessor:} 12. c4 Nc7 13. Nbd2 Ba6 14. Rfd1 a4 15. Qe1 Qd7 16. Rac1 Bb7 17. Be3 Rfd8 18. Nf1 {½-½ (26) David,A (2534)-Peng,L (2487) Agios Ioannis 2019}) 12... a4 {[%emt 0:02:40]} 13. c4 {[%emt 0:06:57]} Nc7 {[%emt 0:12:18]} 14. h5 {[%emt 0:07:56]} (14. a3 $11) 14... Kh8 {[%emt 0:15:05]} 15. Rfd1 {[%emt 0:10:46]} Bb7 {[%emt 0:06:52]} 16. Nf1 {[%emt 0:01:36]} Qd7 {[%emt 0:06:38]} 17. N1h2 {[%emt 0:01:36]} Rfd8 {[%emt 0:01:53]} (17... h6 $11) 18. h6 $14 {[%emt 0:05:11]} g6 {[%emt 0:02:23]} 19. Ng4 {[%emt 0:00:12]} Ne8 {[%emt 0:02:11]} 20. cxd5 {[%emt 0:13:42] White is more active.} exd5 {[%emt 0:07:41]} 21. Bh3 {[%emt 0:00:08]} (21. Ng5 $2 Nd4 22. Qe3 (22. Nxf7+ $2 Kg8 $19) 22... Qxg4 $19) ({White should play} 21. e6 $1 $14 Qxe6 22. Qxe6 fxe6 23. Re1) 21... Nc7 {[%emt 0:00:46]} (21... Qf5 $1 $11 {keeps the balance.}) 22. e6 {[%emt 0:00:43]} (22. Ng5 $16 Qe8 23. Qe3) 22... Nxe6 $11 {[%emt 0:06:46]} 23. Be5+ {[%emt 0:06:33]} Kg8 $1 {[%emt 0:04:13] White must now prevent ...f5.} (23... Nxe5 24. Ngxe5 Qe8 25. Bxe6 (25. Nxf7+ Qxf7 26. Bxe6 Qf6 $17) 25... fxe6 {[#]} 26. Nc6 $1 $16) 24. Nf6+ {[%emt 0:00:04]} Bxf6 {[%emt 0:00:09]} 25. Bxf6 {[%emt 0:00:02]} Nf4 {[%emt 0:02:21]} 26. gxf4 {[%emt 0:01:26]} Qxh3 {[%emt 0:00:21]} 27. Ng5 $1 {[%emt 0:00:29] Chess con chili.} Qxh6 {[%emt 0:00:55] [#] Hoping for ...Rd6.} 28. Bxd8 {[%emt 0:03:06]} (28. Kg2 $1 $11 Qf8 29. Nxh7) 28... Rxd8 $19 {[%emt 0:00:15]} 29. d4 {[%emt 0:01:57]} (29. Kg2 $142 Qh4 30. Qf3) 29... c4 {[%emt 0:02:14]} ({Worse is} 29... cxd4 30. Qd3 $17) ({Weaker is} 29... Nxd4 30. Qe7 Rf8 31. Rxd4 cxd4 32. Qxb7 $14) 30. Kg2 {[%emt 0:02:27] And now Rh1 would win.} Qg7 {[%emt 0:01:47]} 31. Qe3 {[%emt 0:00:42]} (31. a3 {keeps fighting.} b3 32. Nf3) 31... Bc8 {[%emt 0:00:32]} 32. Rd2 {[%emt 0:02:57]} Bf5 {[%emt 0:01:35]} 33. Re1 {[%emt 0:01:42]} Qf8 {[%emt 0:01:04]} 34. Kg1 {[%emt 0:01:15]} Qd6 {[%emt 0:01:29]} 35. Nf3 {[%emt 0:01:12]} f6 {[%emt 0:01:14] Prevents Ne5.} 36. Nh4 {[%emt 0:00:06]} Bd7 {[%emt 0:00:33]} 37. Qg3 {[%emt 0:00:03]} Ne7 $2 {[%emt 0:00:58]} ({Better is} 37... Kg7 $19 {aiming for ...Ra8.} 38. Rdd1 Rc8) 38. Rde2 $11 {[%emt 0:00:40]} Nf5 {[%emt 0:01:24]} 39. Nxf5 {[%emt 0:00:55]} Bxf5 {[%emt 0:00:17]} 40. Re7 {[%emt 0:00:00]} Rd7 {[%emt 0:00:00]} 41. Re8+ {[%emt 0:05:36]} Kg7 {[%emt 0:02:21][%cal Oc4c3] Strongly threatening ...c3!} 42. Ra8 {[%emt 0:02:11]} Re7 {[%emt 0:02:44] And White is the lucky defender.  Weighted Error Value: White=0.24 (precise) /Black=0.30} (42... a3 $5 43. bxa3 c3 $17) 1/2-1/2

[Event "8th Svetozar Gligoric Cup 2022"]
[Site "Paracin"]
[Date "2022.06.03"]
[Round "5.11"]
[White "Adzic, Momcilo"]
[Black "Ivanovic, Marko"]
[Result "0-1"]
[ECO "C78"]
[WhiteElo "2203"]
[BlackElo "2294"]
[Annotator "TA"]
[PlyCount "90"]
[EventDate "2022.05.31"]
[EventType "team-tourn"]
[EventCountry "SRB"]
[SourceTitle "playchess.com"]
[Source "ChessBase"]
[SourceQuality "1"]
[TimeControl "40/5400+30:900+30"]

{[%evp 15,90,14,11,18,17,10,14,14,36,4,6,4,12,-29,-8,-10,-10,-20,0,0,0,-17,-27,-43,-39,-34,-41,-85,-66,-88,-102,-121,-110,-161,-163,-204,-200,-185,-197,-224,-216,-233,-219,-227,-204,-207,-207,-200,-195,-185,-166,-238,-221,-242,-215,-301,-287,-523,-522,-507,-391,-485,-437,-6272,-6272,-6136,-6269,-6179,-6187,-6151,-6151,-6136,-6136,-6103,-6086,-1448,-675]} 1. e4 {[%emt 0:00:08]} e5 {[%emt 0:03:42]} 2. Nf3 {[%emt 0:00:06]} Nc6 {[%emt 0:00:04]} 3. Bb5 {[%emt 0:00:33]} a6 {[%emt 0:00:05]} 4. Ba4 {[%emt 0:00:11]} Nf6 {[%emt 0:00:04]} 5. d3 {[%emt 0:00:57]} b5 {[%emt 0:00:13]} 6. Bb3 {[%emt 0:00:10]} Bc5 {[%emt 0:00:05]} 7. O-O {[%emt 0:00:30]} d6 {[%emt 0:00:04]} 8. c3 {[%emt 0:00:50]} O-O {[%emt 0:00:17] 8...h6 is more advanced technology.} 9. Nbd2 {[%emt 0:01:12][%cal Bb1d2,Bd2f1,Bf1e3][%mdl 32] C78: Ruy Lopez: Archangelsk and Möller Defences.} Re8 {[%emt 0:00:10]} 10. Re1 {[%emt 0:01:20]} h6 {[%emt 0:01:00]} 11. Nf1 {[%emt 0:00:40] The position is equal.} Be6 {[%emt 0:00:04]} 12. Be3 {[%emt 0:06:40]} Bxe3 {[%emt 0:01:10]} 13. Nxe3 {[%emt 0:00:20]} d5 {[%emt 0:00:03] [#]} 14. Bc2 $146 {[%emt 0:03:10]} ({Predecessor:} 14. Qc2 Rc8 15. Rad1 d4 16. Bxe6 fxe6 17. Nf1 Nh5 18. N1d2 Rf8 19. cxd4 Nxd4 {1-0 (40) Menacher,M (2311)-Riedel,W (2317) Wildflecken 1993}) 14... Qd6 {[%emt 0:05:11]} 15. h3 {[%emt 0:16:35]} Rad8 {[%emt 0:01:58]} 16. exd5 {[%emt 0:10:19]} Nxd5 {[%emt 0:06:15]} 17. Nxd5 {[%emt 0:00:46]} Bxd5 {[%emt 0:02:04]} 18. a4 {[%emt 0:00:55]} b4 {[%emt 0:00:54]} 19. a5 {[%emt 0:00:16]} bxc3 {[%emt 0:13:46]} 20. bxc3 {[%emt 0:00:03]} Qc5 {[%emt 0:00:07][%csl LRa5,LRc3]} 21. Ba4 {[%emt 0:01:37]} Re6 {[%emt 0:17:08] Black continues to play with concentration.} (21... Qxc3 $2 22. Rc1 Qxa5 23. Bxc6 Bxc6 24. Rxc6 $18) 22. Bxc6 {[%emt 0:05:36]} Bxc6 {[%emt 0:00:05]} 23. Re3 {[%emt 0:03:57]} Bxf3 {[%emt 0:00:58] Black is much more active.} 24. Rxf3 {[%emt 0:00:36]} (24. Qxf3 $17 Qxc3 25. Ree1) 24... Qxc3 $19 {[%emt 0:00:10] [#] Strongly threatening ...e4.} 25. Qa4 {[%emt 0:03:47]} Rxd3 {[%emt 0:05:58]} 26. Rxd3 {[%emt 0:01:56]} Qxd3 {[%emt 0:00:02][%mdl 4096] Endgame KQR-KQR} 27. Qb4 {[%emt 0:02:47]} Qd4 {[%emt 0:06:06]} 28. Qe1 {[%emt 0:02:56]} Rd6 {[%emt 0:07:00]} 29. Rb1 {[%emt 0:00:49]} f6 {[%emt 0:01:36]} 30. Qe2 {[%emt 0:01:05]} Qd3 {[%emt 0:01:04] Prevents Qc2.} 31. Qb2 {[%emt 0:03:16]} Rd5 {[%emt 0:01:47]} 32. Rc1 {[%emt 0:00:43]} Rxa5 {[%emt 0:13:26] ...Kh7 is the strong threat.} 33. Qb8+ {[%emt 0:01:35]} (33. Rxc7 $142 Kh7 34. Qb7) 33... Kh7 {[%emt 0:00:34]} 34. Qxc7 {[%emt 0:00:24]} Rd5 {[%emt 0:00:18]} 35. Ra1 {[%emt 0:00:42]} Qe2 {[%emt 0:01:43]} 36. Qa7 $2 {[%emt 0:06:24] [#]} (36. Qc8 Rd1+ 37. Rxd1 Qxd1+ 38. Kh2) 36... Rd1+ {[%emt 0:00:17]} 37. Rxd1 {[%emt 0:00:01]} Qxd1+ {[%emt 0:00:06] KQ-KQ} 38. Kh2 {[%emt 0:00:19]} Qd4 {[%emt 0:00:49] Black is clearly winning.} 39. Qxa6 {[%emt 0:00:30]} (39. Qa8 $142 a5 40. Qxa5) 39... Qxf2 {[%emt 0:00:05]} 40. Qe6 {[%emt 0:00:00]} Qf4+ {[%emt 0:00:00]} 41. Kg1 {[%emt 0:00:38]} e4 {[%emt 0:00:24]} 42. Qc4 {[%emt 0:00:17]} f5 {[%emt 0:00:40]} 43. Qd4 {[%emt 0:00:22]} Qc1+ {[%emt 0:04:15]} 44. Kh2 {[%emt 0:00:33]} Qf1 {[%emt 0:00:44]} 45. Qe5 {[%emt 0:04:13]} Qf2 {[%emt 0:00:13] Weighted Error Value: White=0.47/Black=0.04 (flawless)} 0-1